[Event "Titled Tuesday Blitz August 08 Early 2023"]
[White "Stachanczyk, Jacek"]
[Black "Williams, Simon K"]
[WhiteFideId "1116657"]
[BlackFideId "404454"]
[WhiteElo "2354"]
[BlackElo "2564"]
[Result "1/2-1/2"]
[Round "2"]
[TimeControl "180+1"]
[Date "2023.08.08"]
[WhiteClock "0:00:18"]
[BlackClock "0:00:06"]
[Board "177"]

1. e4 {[%clk 0:02:59]}  d6 {[%clk 0:02:58]} 2. d4 {[%clk 0:02:58]}  Nf6 {[%clk 0:02:58]} 3. Nc3 {[%clk 0:02:58]}  Nbd7 {[%clk 0:02:58]} 4. f4 {[%clk 0:02:57]}  e5 {[%clk 0:02:58]} 5. Nf3 {[%clk 0:02:57]}  exd4 {[%clk 0:02:58]} 6. Qxd4 {[%clk 0:02:57]}  c6 {[%clk 0:02:58]} 7. Be3 {[%clk 0:02:50]}  d5 {[%clk 0:02:57]} 8. exd5 {[%clk 0:02:45]}  Bc5 {[%clk 0:02:56]} 9. Qd2 {[%clk 0:02:45]}  Qe7 {[%clk 0:02:52]} 10. Nd1 {[%clk 0:02:25]}  Ng4 {[%clk 0:02:45]} 11. d6 {[%clk 0:02:16]}  Bxd6 {[%clk 0:02:25]} 12. Be2 {[%clk 0:02:09]}  Nxe3 {[%clk 0:02:18]} 13. Qxe3 {[%clk 0:02:10]}  Qxe3 {[%clk 0:02:18]} 14. Nxe3 {[%clk 0:02:11]}  Bxf4 {[%clk 0:02:18]} 15. Kf2 {[%clk 0:02:02]}  Ne5 {[%clk 0:02:13]} 16. Rhe1 {[%clk 0:01:53]}  O-O {[%clk 0:02:12]} 17. Nxe5 {[%clk 0:01:50]}  Bxe5 {[%clk 0:02:12]} 18. c3 {[%clk 0:01:51]}  Be6 {[%clk 0:02:10]} 19. Bf3 {[%clk 0:01:48]}  Rad8 {[%clk 0:02:08]} 20. Re2 {[%clk 0:01:40]}  Bc7 {[%clk 0:02:06]} 21. Nc2 {[%clk 0:01:28]}  Bc4 {[%clk 0:02:02]} 22. Re7 {[%clk 0:01:13]}  Rd2+ {[%clk 0:01:40]} 23. Ke3 {[%clk 0:01:04]}  Rd3+ {[%clk 0:01:40]} 24. Kf2 {[%clk 0:01:01]}  Bd8 {[%clk 0:01:23]} 25. Re4 {[%clk 0:00:56]}  Bd5 {[%clk 0:00:58]} 26. Re2 {[%clk 0:00:46]}  Bb6+ {[%clk 0:00:55]} 27. Kg3 {[%clk 0:00:46]}  f5 {[%clk 0:00:49]} 28. Nb4 {[%clk 0:00:44]}  Bc4 {[%clk 0:00:43]} 29. Nxd3 {[%clk 0:00:43]}  Bxd3 {[%clk 0:00:42]} 30. Rd2 {[%clk 0:00:41]}  f4+ {[%clk 0:00:41]} 31. Kg4 {[%clk 0:00:41]}  h5+ {[%clk 0:00:29]} 32. Kxh5 {[%clk 0:00:39]}  Bf5 {[%clk 0:00:25]} 33. Rad1 {[%clk 0:00:35]}  Kh7 {[%clk 0:00:17]} 34. Rd7 {[%clk 0:00:32]}  Rf6 {[%clk 0:00:13]} 35. Kg5 {[%clk 0:00:31]}  Bc2 {[%clk 0:00:07]} 36. R1d6 {[%clk 0:00:30]}  Rf5+ {[%clk 0:00:06]} 37. Kg4 {[%clk 0:00:30]}  Bc5 {[%clk 0:00:06]} 38. Rd2 {[%clk 0:00:24]}  Bb1 {[%clk 0:00:05]} 39. Rxb7 {[%clk 0:00:22]}  Rf6 {[%clk 0:00:05]} 40. Rdd7 {[%clk 0:00:21]}  Bf5+ {[%clk 0:00:04]} 41. Kg5 {[%clk 0:00:21]}  Bxd7 {[%clk 0:00:05]} 42. Rxd7 {[%clk 0:00:20]}  Be3 {[%clk 0:00:05]} 43. Rc7 {[%clk 0:00:18]}  c5 {[%clk 0:00:04]} 44. c4 {[%clk 0:00:17]}  Rd6 {[%clk 0:00:03]} 45. Bd5 {[%clk 0:00:17]}  Bd4 {[%clk 0:00:03]} 46. Be4+ {[%clk 0:00:17]}  Kg8 {[%clk 0:00:03]} 47. Rc8+ {[%clk 0:00:18]}  Kf7 {[%clk 0:00:03]} 48. Bd5+ {[%clk 0:00:18]}  Ke7 {[%clk 0:00:03]} 49. Rc7+ {[%clk 0:00:19]}  Rd7 {[%clk 0:00:04]} 50. Rxd7+ {[%clk 0:00:18]}  Kxd7 {[%clk 0:00:05]} 51. Kxf4 {[%clk 0:00:19]}  Bxb2 {[%clk 0:00:05]} 52. Kf5 {[%clk 0:00:19]}  Kd6 {[%clk 0:00:06]} 53. Kg6 {[%clk 0:00:19]}  Kc7 {[%clk 0:00:05]} 54. g4 {[%clk 0:00:19]}  Kb6 {[%clk 0:00:06]} 55. h4 {[%clk 0:00:20]}  Ka5 {[%clk 0:00:06]} 56. Bc6 {[%clk 0:00:18]}  Kb4 {[%clk 0:00:06]} 57. Bb5 {[%clk 0:00:18]}  Ka3 {[%clk 0:00:05]} 58. g5 {[%clk 0:00:16]}  Kxa2 {[%clk 0:00:05]} 59. Ba6 {[%clk 0:00:17]}  Kb3 {[%clk 0:00:04]} 60. h5 {[%clk 0:00:17]}  Kb4 {[%clk 0:00:04]} 61. h6 {[%clk 0:00:18]}  gxh6 {[%clk 0:00:04]} 62. gxh6 {[%clk 0:00:18]}  Ka5 {[%clk 0:00:04]} 63. Bb5 {[%clk 0:00:18]}  Kb4 {[%clk 0:00:04]} 64. Ba6 {[%clk 0:00:18]}  Ka5 {[%clk 0:00:05]} 65. Bb5 {[%clk 0:00:18]}  Kb6 {[%clk 0:00:05]} 66. h7 {[%clk 0:00:18]}  a5 {[%clk 0:00:05]} 67. Kf7 {[%clk 0:00:17]}  Kc7 {[%clk 0:00:05]} 68. Ke6 {[%clk 0:00:17]}  Kb6 {[%clk 0:00:05]} 69. Kd6 {[%clk 0:00:16]}  Bc3 {[%clk 0:00:06]} 70. Ba4 {[%clk 0:00:16]}  Bb2 {[%clk 0:00:06]} 71. Kd7 {[%clk 0:00:17]}  Bc3 {[%clk 0:00:06]} 72. Kd6 {[%clk 0:00:17]}  Bb2 {[%clk 0:00:06]} 73. Kd5 {[%clk 0:00:18]}  Bc3 {[%clk 0:00:06]} 74. Kd6 {[%clk 0:00:18]} 1/2-1/2


[Site "https://www.chess.com"]

[Event "Titled Tuesday Blitz August 08 Early 2023"]
[White "Mazurkiewicz, Michal"]
[Black "Ibadov, Dashgyn"]
[WhiteFideId "1124943"]
[BlackFideId "24107514"]
[WhiteElo "2352"]
[BlackElo "2555"]
[Result "1-0"]
[Round "2"]
[TimeControl "180+1"]
[Date "2023.08.08"]
[WhiteClock "0:00:17"]
[BlackClock "0:00:06"]
[Board "179"]

1. e4 {[%clk 0:03:00]}  e6 {[%clk 0:02:59]} 2. d3 {[%clk 0:02:59]}  d5 {[%clk 0:03:00]} 3. Nd2 {[%clk 0:03:00]}  Nf6 {[%clk 0:03:00]} 4. Ngf3 {[%clk 0:03:01]}  c5 {[%clk 0:03:01]} 5. g3 {[%clk 0:03:00]}  Nc6 {[%clk 0:03:01]} 6. Bg2 {[%clk 0:03:01]}  g6 {[%clk 0:03:02]} 7. O-O {[%clk 0:03:01]}  Bg7 {[%clk 0:03:03]} 8. Re1 {[%clk 0:03:02]}  O-O {[%clk 0:03:03]} 9. Qe2 {[%clk 0:03:03]}  a5 {[%clk 0:02:59]} 10. h4 {[%clk 0:03:02]}  b6 {[%clk 0:02:59]} 11. Nf1 {[%clk 0:02:59]}  dxe4 {[%clk 0:02:56]} 12. dxe4 {[%clk 0:02:59]}  Ba6 {[%clk 0:02:57]} 13. c4 {[%clk 0:02:58]}  Nd4 {[%clk 0:02:43]} 14. Nxd4 {[%clk 0:02:55]}  cxd4 {[%clk 0:02:44]} 15. e5 {[%clk 0:02:48]}  Nd7 {[%clk 0:02:43]} 16. Bxa8 {[%clk 0:02:43]}  Qxa8 {[%clk 0:02:44]} 17. Qe4 {[%clk 0:02:40]}  Bb7 {[%clk 0:02:28]} 18. Qxd4 {[%clk 0:02:39]}  Bh1 {[%clk 0:02:28]} 19. f3 {[%clk 0:02:02]}  Qxf3 {[%clk 0:02:10]} 20. Qf2 {[%clk 0:02:01]}  Nxe5 {[%clk 0:02:08]} 21. Nh2 {[%clk 0:01:23]}  Qxf2+ {[%clk 0:01:53]} 22. Kxf2 {[%clk 0:01:20]}  Nd3+ {[%clk 0:01:54]} 23. Ke2 {[%clk 0:01:20]}  Nxe1 {[%clk 0:01:51]} 24. Kxe1 {[%clk 0:01:21]}  Rc8 {[%clk 0:01:41]} 25. Rb1 {[%clk 0:01:05]}  Rxc4 {[%clk 0:01:40]} 26. Bd2 {[%clk 0:01:03]}  Be4 {[%clk 0:01:33]} 27. Rd1 {[%clk 0:01:00]}  Bxb2 {[%clk 0:01:29]} 28. Bh6 {[%clk 0:00:53]}  Bd5 {[%clk 0:01:28]} 29. Rb1 {[%clk 0:00:50]}  Bd4 {[%clk 0:01:03]} 30. Ke2 {[%clk 0:00:30]}  Bc5 {[%clk 0:01:01]} 31. Nf3 {[%clk 0:00:23]}  Rc2+ {[%clk 0:00:57]} 32. Nd2 {[%clk 0:00:22]}  Rxa2 {[%clk 0:00:55]} 33. Kd3 {[%clk 0:00:21]}  a4 {[%clk 0:00:54]} 34. Nc4 {[%clk 0:00:18]}  Bxc4+ {[%clk 0:00:46]} 35. Kxc4 {[%clk 0:00:19]}  Rc2+ {[%clk 0:00:23]} 36. Kb5 {[%clk 0:00:19]}  a3 {[%clk 0:00:22]} 37. Rd1 {[%clk 0:00:19]}  f5 {[%clk 0:00:12]} 38. Rd7 {[%clk 0:00:18]}  Bf8 {[%clk 0:00:06]} 39. Rd8 {[%clk 0:00:18]}  a2 {[%clk 0:00:06]} 40. Rxf8# {[%clk 0:00:17]} 1-0


[Site "https://www.chess.com"]

[Event "Titled Tuesday Blitz August 08 Early 2023"]
[White "Pratama, Constantius Leonardo"]
[Black "Nithyalakshmi, Sivanesan"]
[WhiteFideId "7104677"]
[BlackFideId "5706955"]
[WhiteElo "2553"]
[BlackElo "2348"]
[Result "1-0"]
[Round "2"]
[TimeControl "180+1"]
[Date "2023.08.08"]
[WhiteClock "0:01:12"]
[BlackClock "0:00:00"]
[Board "182"]

1. e4 {[%clk 0:03:00]}  e6 {[%clk 0:02:58]} 2. d4 {[%clk 0:02:59]}  d5 {[%clk 0:02:58]} 3. e5 {[%clk 0:02:59]}  Bd7 {[%clk 0:02:57]} 4. Nf3 {[%clk 0:02:57]}  a6 {[%clk 0:02:57]} 5. c3 {[%clk 0:02:53]}  Bb5 {[%clk 0:02:56]} 6. Be2 {[%clk 0:02:48]}  Be7 {[%clk 0:02:45]} 7. O-O {[%clk 0:02:47]}  Bxe2 {[%clk 0:02:43]} 8. Qxe2 {[%clk 0:02:48]}  Nc6 {[%clk 0:02:42]} 9. Na3 {[%clk 0:02:34]}  g5 {[%clk 0:02:34]} 10. Nc2 {[%clk 0:02:29]}  h5 {[%clk 0:02:28]} 11. Nfe1 {[%clk 0:02:19]}  Nh6 {[%clk 0:02:22]} 12. f4 {[%clk 0:02:11]}  g4 {[%clk 0:02:17]} 13. Ne3 {[%clk 0:02:08]}  Qd7 {[%clk 0:02:02]} 14. f5 {[%clk 0:02:06]}  Bg5 {[%clk 0:01:36]} 15. f6 {[%clk 0:01:51]}  Bxe3+ {[%clk 0:01:31]} 16. Bxe3 {[%clk 0:01:52]}  Nf5 {[%clk 0:01:31]} 17. Nd3 {[%clk 0:01:51]}  O-O-O {[%clk 0:01:29]} 18. Nc5 {[%clk 0:01:48]}  Qe8 {[%clk 0:01:28]} 19. b4 {[%clk 0:01:46]}  Nb8 {[%clk 0:01:22]} 20. a4 {[%clk 0:01:45]}  Rg8 {[%clk 0:01:06]} 21. Rfb1 {[%clk 0:01:42]}  h4 {[%clk 0:01:02]} 22. b5 {[%clk 0:01:39]}  a5 {[%clk 0:01:01]} 23. b6 {[%clk 0:01:31]}  c6 {[%clk 0:01:01]} 24. Nb3 {[%clk 0:01:19]}  Qf8 {[%clk 0:00:31]} 25. Nxa5 {[%clk 0:01:17]}  c5 {[%clk 0:00:20]} 26. Nb3 {[%clk 0:01:13]}  c4 {[%clk 0:00:18]} 27. Nc5 {[%clk 0:01:13]}  Nc6 {[%clk 0:00:16]} 28. a5 {[%clk 0:01:12]}  Nxe3 {[%clk 0:00:02]} 29. Qxe3 {[%clk 0:01:13]}  g3 {[%clk 0:00:00]} 30. h3 {[%clk 0:01:12]} 1-0


[Site "https://www.chess.com"]

[Event "Titled Tuesday Blitz August 08 Early 2023"]
[White "Topalov, Aleksandar"]
[Black "Janaszak, Dawid"]
[WhiteFideId "925659"]
[BlackFideId "1119206"]
[WhiteElo "2339"]
[BlackElo "2527"]
[Result "0-1"]
[Round "2"]
[TimeControl "180+1"]
[Date "2023.08.08"]
[WhiteClock "0:00:00"]
[BlackClock "0:00:35"]
[Board "186"]

1. b3 {[%clk 0:03:00]}  e5 {[%clk 0:02:58]} 2. Bb2 {[%clk 0:03:00]}  Nc6 {[%clk 0:02:58]} 3. c4 {[%clk 0:02:59]}  Bc5 {[%clk 0:02:55]} 4. e3 {[%clk 0:02:58]}  d6 {[%clk 0:02:54]} 5. a3 {[%clk 0:02:59]}  a5 {[%clk 0:02:53]} 6. Nf3 {[%clk 0:02:59]}  Nge7 {[%clk 0:02:52]} 7. d4 {[%clk 0:02:59]}  exd4 {[%clk 0:02:50]} 8. Nxd4 {[%clk 0:02:59]}  O-O {[%clk 0:02:48]} 9. Be2 {[%clk 0:02:58]}  Nf5 {[%clk 0:02:43]} 10. Nxf5 {[%clk 0:02:53]}  Bxf5 {[%clk 0:02:44]} 11. O-O {[%clk 0:02:46]}  Qh4 {[%clk 0:02:44]} 12. Nc3 {[%clk 0:02:37]}  Ne5 {[%clk 0:02:34]} 13. Nd5 {[%clk 0:02:33]}  c6 {[%clk 0:02:28]} 14. g3 {[%clk 0:02:22]}  Qd8 {[%clk 0:02:20]} 15. Nf4 {[%clk 0:02:19]}  Re8 {[%clk 0:02:06]} 16. Re1 {[%clk 0:02:12]}  Qf6 {[%clk 0:02:00]} 17. Qd2 {[%clk 0:02:03]}  Qh6 {[%clk 0:01:54]} 18. Bd4 {[%clk 0:01:29]}  Ng4 {[%clk 0:01:48]} 19. h4 {[%clk 0:01:18]}  g5 {[%clk 0:01:29]} 20. Bxg4 {[%clk 0:00:56]}  Bxg4 {[%clk 0:01:28]} 21. hxg5 {[%clk 0:00:55]}  Qxg5 {[%clk 0:01:28]} 22. Kg2 {[%clk 0:00:44]}  Re7 {[%clk 0:01:07]} 23. f3 {[%clk 0:00:43]}  Bd7 {[%clk 0:01:05]} 24. b4 {[%clk 0:00:26]}  Bxd4 {[%clk 0:00:57]} 25. Qxd4 {[%clk 0:00:20]}  Qe5 {[%clk 0:00:51]} 26. Qxe5 {[%clk 0:00:08]}  dxe5 {[%clk 0:00:51]} 27. Nd3 {[%clk 0:00:08]}  e4 {[%clk 0:00:51]} 28. Nc5 {[%clk 0:00:08]}  exf3+ {[%clk 0:00:50]} 29. Kxf3 {[%clk 0:00:08]}  Bf5 {[%clk 0:00:47]} 30. e4 {[%clk 0:00:08]}  Bg6 {[%clk 0:00:47]} 31. Red1 {[%clk 0:00:05]}  b6 {[%clk 0:00:47]} 32. Rd7 {[%clk 0:00:05]}  Rae8 {[%clk 0:00:44]} 33. Rxe7 {[%clk 0:00:04]}  Rxe7 {[%clk 0:00:45]} 34. Na4 {[%clk 0:00:02]}  Bxe4+ {[%clk 0:00:44]} 35. Kf4 {[%clk 0:00:03]}  axb4 {[%clk 0:00:39]} 36. axb4 {[%clk 0:00:03]}  b5 {[%clk 0:00:40]} 37. cxb5 {[%clk 0:00:03]}  cxb5 {[%clk 0:00:40]} 38. Nc5 {[%clk 0:00:04]}  Bd5 {[%clk 0:00:38]} 39. Ra5 {[%clk 0:00:04]}  Bc4 {[%clk 0:00:38]} 40. Ra8+ {[%clk 0:00:04]}  Kg7 {[%clk 0:00:38]} 41. Ne4 {[%clk 0:00:04]}  Re6 {[%clk 0:00:37]} 42. Ng5 {[%clk 0:00:03]}  Rf6+ {[%clk 0:00:36]} 43. Ke3 {[%clk 0:00:03]}  Rg6 {[%clk 0:00:36]} 44. Ne4 {[%clk 0:00:03]}  f5 {[%clk 0:00:35]} 45. Ra7+ {[%clk 0:00:00]}  Kh6 {[%clk 0:00:35]} 0-1


[Site "https://www.chess.com"]

[Event "Titled Tuesday Blitz August 08 Early 2023"]
[White "Lopez Gracia, Fernando"]
[Black "Eynullayev, Atilla"]
[WhiteFideId "2207184"]
[BlackFideId "13413570"]
[WhiteElo "2332"]
[BlackElo "2525"]
[Result "1-0"]
[Round "2"]
[TimeControl "180+1"]
[Date "2023.08.08"]
[WhiteClock "0:00:26"]
[BlackClock "0:00:00"]
[Board "188"]

1. e4 {[%clk 0:03:00]}  c5 {[%clk 0:03:00]} 2. Nf3 {[%clk 0:02:59]}  d6 {[%clk 0:03:00]} 3. d4 {[%clk 0:03:00]}  cxd4 {[%clk 0:03:00]} 4. Nxd4 {[%clk 0:03:01]}  Nf6 {[%clk 0:02:59]} 5. Nc3 {[%clk 0:03:01]}  a6 {[%clk 0:03:00]} 6. Bd3 {[%clk 0:03:02]}  e5 {[%clk 0:02:59]} 7. Nde2 {[%clk 0:03:03]}  Be7 {[%clk 0:03:00]} 8. O-O {[%clk 0:03:01]}  O-O {[%clk 0:03:01]} 9. Ng3 {[%clk 0:03:01]}  b5 {[%clk 0:03:00]} 10. b4 {[%clk 0:02:55]}  Nc6 {[%clk 0:03:00]} 11. a3 {[%clk 0:02:52]}  Bg4 {[%clk 0:03:00]} 12. f3 {[%clk 0:02:49]}  Qb6+ {[%clk 0:03:00]} 13. Kh1 {[%clk 0:02:49]}  Be6 {[%clk 0:03:01]} 14. Bb2 {[%clk 0:02:42]}  Nd4 {[%clk 0:03:00]} 15. Nce2 {[%clk 0:02:40]}  Nxe2 {[%clk 0:02:48]} 16. Qxe2 {[%clk 0:02:41]}  Rac8 {[%clk 0:02:46]} 17. a4 {[%clk 0:02:33]}  Bc4 {[%clk 0:02:12]} 18. Nf5 {[%clk 0:02:29]}  Rfe8 {[%clk 0:02:13]} 19. axb5 {[%clk 0:02:26]}  axb5 {[%clk 0:02:12]} 20. Ra5 {[%clk 0:02:23]}  Bf8 {[%clk 0:02:09]} 21. Rfa1 {[%clk 0:02:20]}  g6 {[%clk 0:02:10]} 22. Ne3 {[%clk 0:01:58]}  d5 {[%clk 0:01:25]} 23. exd5 {[%clk 0:01:51]}  Bxb4 {[%clk 0:01:06]} 24. Ra6 {[%clk 0:01:38]}  Bxd3 {[%clk 0:01:07]} 25. Qxd3 {[%clk 0:01:35]}  e4 {[%clk 0:01:00]} 26. fxe4 {[%clk 0:01:25]}  Nxe4 {[%clk 0:01:01]} 27. Kg1 {[%clk 0:01:06]}  Qc5 {[%clk 0:00:37]} 28. Bd4 {[%clk 0:00:48]}  Qc7 {[%clk 0:00:12]} 29. Ng4 {[%clk 0:00:46]}  h5 {[%clk 0:00:10]} 30. Nh6+ {[%clk 0:00:31]}  Kh7 {[%clk 0:00:10]} 31. Ra7 {[%clk 0:00:31]}  Kxh6 {[%clk 0:00:03]} 32. Rxc7 {[%clk 0:00:30]}  Rxc7 {[%clk 0:00:04]} 33. Qxb5 {[%clk 0:00:28]}  Rce7 {[%clk 0:00:00]} 34. Qxb4 {[%clk 0:00:26]} 1-0


[Site "https://www.chess.com"]

[Event "Titled Tuesday Blitz August 08 Early 2023"]
[White "Sreyas Payyappat"]
[Black "Lesbekova, Assel"]
[WhiteFideId "46674969"]
[BlackFideId "13713248"]
[WhiteElo "2524"]
[BlackElo "2332"]
[Result "1-0"]
[Round "2"]
[TimeControl "180+1"]
[Date "2023.08.08"]
[WhiteClock "0:01:11"]
[BlackClock "0:01:09"]
[Board "189"]

1. e4 {[%clk 0:03:00]}  e5 {[%clk 0:02:59]} 2. Nf3 {[%clk 0:03:00]}  Nf6 {[%clk 0:03:00]} 3. Nxe5 {[%clk 0:02:59]}  Nxe4 {[%clk 0:03:00]} 4. Qe2 {[%clk 0:02:58]}  Qe7 {[%clk 0:03:00]} 5. Qxe4 {[%clk 0:02:57]}  d6 {[%clk 0:03:01]} 6. d4 {[%clk 0:02:57]}  dxe5 {[%clk 0:03:01]} 7. dxe5 {[%clk 0:02:58]}  Nc6 {[%clk 0:03:01]} 8. Bb5 {[%clk 0:02:58]}  Bd7 {[%clk 0:03:01]} 9. O-O {[%clk 0:02:45]}  O-O-O {[%clk 0:03:00]} 10. Bf4 {[%clk 0:02:33]}  g5 {[%clk 0:02:53]} 11. Bg3 {[%clk 0:02:33]}  f5 {[%clk 0:02:51]} 12. Qa4 {[%clk 0:02:27]}  f4 {[%clk 0:02:25]} 13. Re1 {[%clk 0:02:27]}  fxg3 {[%clk 0:02:23]} 14. hxg3 {[%clk 0:02:28]}  Kb8 {[%clk 0:02:19]} 15. Nc3 {[%clk 0:02:25]}  Be8 {[%clk 0:01:55]} 16. Rad1 {[%clk 0:02:13]}  Rxd1 {[%clk 0:01:52]} 17. Rxd1 {[%clk 0:02:14]}  a6 {[%clk 0:01:52]} 18. Be2 {[%clk 0:01:49]}  Nxe5 {[%clk 0:01:43]} 19. Qd4 {[%clk 0:01:48]}  Bg7 {[%clk 0:01:36]} 20. Nd5 {[%clk 0:01:32]}  Qd6 {[%clk 0:01:30]} 21. Qe3 {[%clk 0:01:23]}  Qc6 {[%clk 0:01:15]} 22. Ne7 {[%clk 0:01:13]}  Qb6 {[%clk 0:01:09]} 23. Rd8+ {[%clk 0:01:11]} 1-0


[Site "https://www.chess.com"]

[Event "Titled Tuesday Blitz August 08 Early 2023"]
[White "Valle Maytin, Luis Enrique"]
[Black "Womacka, Mathias"]
[WhiteFideId "3503666"]
[BlackFideId "4611390"]
[WhiteElo "2321"]
[BlackElo "2518"]
[Result "0-1"]
[Round "2"]
[TimeControl "180+1"]
[Date "2023.08.08"]
[WhiteClock "0:00:02"]
[BlackClock "0:00:41"]
[Board "194"]

1. d4 {[%clk 0:03:00]}  Nf6 {[%clk 0:02:59]} 2. Nf3 {[%clk 0:02:52]}  e6 {[%clk 0:02:59]} 3. e3 {[%clk 0:02:53]}  c5 {[%clk 0:02:57]} 4. Bd3 {[%clk 0:02:53]}  Nc6 {[%clk 0:02:55]} 5. O-O {[%clk 0:02:53]}  d5 {[%clk 0:02:54]} 6. b3 {[%clk 0:02:54]}  cxd4 {[%clk 0:02:53]} 7. exd4 {[%clk 0:02:53]}  Be7 {[%clk 0:02:51]} 8. Bb2 {[%clk 0:02:53]}  O-O {[%clk 0:02:51]} 9. Re1 {[%clk 0:02:51]}  b6 {[%clk 0:02:46]} 10. a3 {[%clk 0:02:52]}  Bb7 {[%clk 0:02:45]} 11. Nbd2 {[%clk 0:02:52]}  Rc8 {[%clk 0:02:42]} 12. Ne5 {[%clk 0:02:52]}  Nxe5 {[%clk 0:02:33]} 13. dxe5 {[%clk 0:02:53]}  Ne4 {[%clk 0:02:32]} 14. Nxe4 {[%clk 0:02:22]}  dxe4 {[%clk 0:02:33]} 15. Bc4 {[%clk 0:02:22]}  a6 {[%clk 0:02:25]} 16. a4 {[%clk 0:02:18]}  b5 {[%clk 0:02:14]} 17. axb5 {[%clk 0:02:18]}  axb5 {[%clk 0:02:15]} 18. Bxb5 {[%clk 0:02:13]}  Qxd1 {[%clk 0:02:15]} 19. Rexd1 {[%clk 0:02:12]}  Rxc2 {[%clk 0:02:15]} 20. Ba3 {[%clk 0:02:05]}  Bxa3 {[%clk 0:02:12]} 21. Rxa3 {[%clk 0:02:06]}  Bd5 {[%clk 0:02:12]} 22. h3 {[%clk 0:01:43]}  Rb8 {[%clk 0:02:06]} 23. Bc4 {[%clk 0:01:05]}  Bxc4 {[%clk 0:02:04]} 24. bxc4 {[%clk 0:01:06]}  g6 {[%clk 0:01:47]} 25. Ra7 {[%clk 0:01:02]}  Rbb2 {[%clk 0:01:45]} 26. Rf1 {[%clk 0:00:23]}  e3 {[%clk 0:01:41]} 27. Ra8+ {[%clk 0:00:19]}  Kg7 {[%clk 0:01:40]} 28. Ra3 {[%clk 0:00:19]}  exf2+ {[%clk 0:01:28]} 29. Kh2 {[%clk 0:00:19]}  Rxc4 {[%clk 0:01:28]} 30. Rf3 {[%clk 0:00:19]}  Re4 {[%clk 0:01:28]} 31. R1xf2 {[%clk 0:00:18]}  Rxf2 {[%clk 0:01:27]} 32. Rxf2 {[%clk 0:00:19]}  Rxe5 {[%clk 0:01:27]} 33. Kg3 {[%clk 0:00:20]}  h5 {[%clk 0:01:26]} 34. h4 {[%clk 0:00:20]}  Re3+ {[%clk 0:01:19]} 35. Kh2 {[%clk 0:00:19]}  f5 {[%clk 0:01:15]} 36. Ra2 {[%clk 0:00:19]}  Kf6 {[%clk 0:01:15]} 37. g3 {[%clk 0:00:19]}  g5 {[%clk 0:01:09]} 38. hxg5+ {[%clk 0:00:19]}  Kxg5 {[%clk 0:01:10]} 39. Kg2 {[%clk 0:00:19]}  h4 {[%clk 0:01:06]} 40. gxh4+ {[%clk 0:00:18]}  Kxh4 {[%clk 0:01:07]} 41. Kf2 {[%clk 0:00:19]}  Re4 {[%clk 0:01:05]} 42. Kf3 {[%clk 0:00:18]}  Kg5 {[%clk 0:00:59]} 43. Rg2+ {[%clk 0:00:17]}  Kf6 {[%clk 0:00:59]} 44. Rg8 {[%clk 0:00:15]}  Ra4 {[%clk 0:00:59]} 45. Rf8+ {[%clk 0:00:14]}  Ke5 {[%clk 0:00:59]} 46. Rb8 {[%clk 0:00:13]}  Ra3+ {[%clk 0:00:59]} 47. Kf2 {[%clk 0:00:13]}  f4 {[%clk 0:00:59]} 48. Rb5+ {[%clk 0:00:13]}  Ke4 {[%clk 0:00:59]} 49. Rb4+ {[%clk 0:00:13]}  Kf5 {[%clk 0:00:59]} 50. Rb8 {[%clk 0:00:12]}  e5 {[%clk 0:00:58]} 51. Ke2 {[%clk 0:00:12]}  f3+ {[%clk 0:00:56]} 52. Kf2 {[%clk 0:00:13]}  Kf4 {[%clk 0:00:56]} 53. Rf8+ {[%clk 0:00:10]}  Ke4 {[%clk 0:00:56]} 54. Kg3 {[%clk 0:00:10]}  Rd3 {[%clk 0:00:46]} 55. Kf2 {[%clk 0:00:09]}  Rd2+ {[%clk 0:00:46]} 56. Kg3 {[%clk 0:00:08]}  Rg2+ {[%clk 0:00:45]} 57. Kh3 {[%clk 0:00:08]}  Rg7 {[%clk 0:00:44]} 58. Ra8 {[%clk 0:00:07]}  Ke3 {[%clk 0:00:44]} 59. Ra3+ {[%clk 0:00:06]}  Kf4 {[%clk 0:00:43]} 60. Kh2 {[%clk 0:00:04]}  e4 {[%clk 0:00:43]} 61. Kh1 {[%clk 0:00:03]}  f2 {[%clk 0:00:43]} 62. Ra1 {[%clk 0:00:03]}  Kf3 {[%clk 0:00:41]} 63. Kh2 {[%clk 0:00:02]}  Rh7# {[%clk 0:00:41]} 0-1


[Site "https://www.chess.com"]

[Event "Titled Tuesday Blitz August 08 Early 2023"]
[White "Burmakin, Vladimir"]
[Black "Vasques, Antonio Pedro Freixial"]
[WhiteFideId "4105109"]
[BlackFideId "1908332"]
[WhiteElo "2517"]
[BlackElo "2321"]
[Result "1-0"]
[Round "2"]
[TimeControl "180+1"]
[Date "2023.08.08"]
[WhiteClock "0:00:58"]
[BlackClock "0:00:02"]
[Board "195"]

1. c4 {[%clk 0:02:57]}  b6 {[%clk 0:02:57]} 2. Nf3 {[%clk 0:02:56]}  Bb7 {[%clk 0:02:58]} 3. d4 {[%clk 0:02:57]}  e6 {[%clk 0:02:57]} 4. Nc3 {[%clk 0:02:57]}  Nf6 {[%clk 0:02:55]} 5. Bf4 {[%clk 0:02:56]}  Bb4 {[%clk 0:02:53]} 6. Rc1 {[%clk 0:02:54]}  O-O {[%clk 0:02:52]} 7. e3 {[%clk 0:02:54]}  c5 {[%clk 0:02:47]} 8. dxc5 {[%clk 0:02:52]}  Bxc5 {[%clk 0:02:42]} 9. Bd3 {[%clk 0:02:48]}  d5 {[%clk 0:02:24]} 10. O-O {[%clk 0:02:44]}  dxc4 {[%clk 0:02:20]} 11. Bxc4 {[%clk 0:02:43]}  Qxd1 {[%clk 0:02:21]} 12. Rfxd1 {[%clk 0:02:42]}  Nc6 {[%clk 0:01:50]} 13. a3 {[%clk 0:02:42]}  Rfd8 {[%clk 0:01:49]} 14. Nb5 {[%clk 0:02:37]}  a6 {[%clk 0:01:36]} 15. Nc7 {[%clk 0:02:28]}  Rxd1+ {[%clk 0:01:07]} 16. Rxd1 {[%clk 0:02:26]}  Rc8 {[%clk 0:01:07]} 17. Nxa6 {[%clk 0:02:22]}  Be7 {[%clk 0:01:04]} 18. Bb5 {[%clk 0:02:04]}  Nd5 {[%clk 0:00:49]} 19. Bg3 {[%clk 0:02:03]}  Na7 {[%clk 0:00:41]} 20. Bf1 {[%clk 0:02:00]}  Rc2 {[%clk 0:00:35]} 21. b4 {[%clk 0:01:56]}  Nc3 {[%clk 0:00:19]} 22. Ra1 {[%clk 0:01:49]}  Ne2+ {[%clk 0:00:18]} 23. Bxe2 {[%clk 0:01:48]}  Rxe2 {[%clk 0:00:19]} 24. Nc7 {[%clk 0:01:46]}  g5 {[%clk 0:00:11]} 25. Nd4 {[%clk 0:01:42]}  Rb2 {[%clk 0:00:09]} 26. Ndb5 {[%clk 0:01:36]}  Nc6 {[%clk 0:00:09]} 27. Rd1 {[%clk 0:01:34]}  h5 {[%clk 0:00:05]} 28. h3 {[%clk 0:01:34]}  h4 {[%clk 0:00:04]} 29. Bd6 {[%clk 0:01:33]}  Ra2 {[%clk 0:00:05]} 30. Bxe7 {[%clk 0:01:30]}  Nxe7 {[%clk 0:00:06]} 31. Rd7 {[%clk 0:01:24]}  Nd5 {[%clk 0:00:06]} 32. Nxe6 {[%clk 0:01:20]}  fxe6 {[%clk 0:00:06]} 33. Rxb7 {[%clk 0:01:19]}  Nf6 {[%clk 0:00:04]} 34. Rxb6 {[%clk 0:01:16]}  Ne4 {[%clk 0:00:05]} 35. Rxe6 {[%clk 0:01:11]}  Ra1+ {[%clk 0:00:04]} 36. Kh2 {[%clk 0:01:11]}  Nxf2 {[%clk 0:00:05]} 37. g4 {[%clk 0:01:11]}  Nd3 {[%clk 0:00:04]} 38. Rf6 {[%clk 0:01:07]}  Ra2+ {[%clk 0:00:03]} 39. Kg1 {[%clk 0:01:06]}  Re2 {[%clk 0:00:04]} 40. Rf5 {[%clk 0:01:05]}  Rxe3 {[%clk 0:00:03]} 41. Rxg5+ {[%clk 0:01:05]}  Kf7 {[%clk 0:00:03]} 42. a4 {[%clk 0:01:03]}  Kf6 {[%clk 0:00:04]} 43. Rf5+ {[%clk 0:01:01]}  Ke6 {[%clk 0:00:04]} 44. a5 {[%clk 0:01:01]}  Nxb4 {[%clk 0:00:04]} 45. Nd4+ {[%clk 0:00:58]}  Kd6 {[%clk 0:00:04]} 46. Rb5 {[%clk 0:00:58]}  Nd5 {[%clk 0:00:04]} 47. Nf5+ {[%clk 0:00:57]}  Ke5 {[%clk 0:00:02]} 48. Nxe3 {[%clk 0:00:58]} 1-0


[Site "https://www.chess.com"]